bitfinex/quotes_ETHUSD_20250222
["timestamp","ask_amount","ask_price","bid_price","bid_amount"]
[1740235410161,0.7222013,2741.8,2741.2,3.91192]
[1740235410382,4.44896213,2741.8,2741.2,3.91192]
[1740235410678,6.42374984,2742.3,2741.2,0.264]
[1740235410679,3.64745,2741.7,2741.2,0.264]
[1740235411262,3.64745,2741.7,2741.3,0.10174119]
[1740235411847,3.64715,2741.9,2741.3,0.10174119]
[1740235412048,7.06956984,2742.9,2741.8,3.64715]
[1740235412378,8.96613,2742.7,2742.0,3.64688]
[1740235412578,1.69904466,2742.6,2742.0,3.64688]
[1740235412749,1.69904466,2742.6,2742.3,3.64648]
[1740235412954,1.69904466,2742.6,2742.4,0.10126064]
[1740235413149,5.32,2742.5,2742.4,3.74770064]
[1740235413951,5.32,2742.5,2742.4,0.10126064]
[1740235414155,5.32,2742.5,2742.3,3.64645]
[1740235414355,5.32,2742.5,2742.4,0.10092692]
[1740235415272,5.32,2742.5,2742.1,3.64675]
[1740235415576,5.32,2742.5,2742.2,3.64667]
[1740235415780,5.32,2742.5,2742.2,3.74695029]
[1740235417153,5.32,2742.5,2742.2,3.74689029]
[1740235417356,5.32,2742.5,2742.3,3.64656]
[1740235417569,5.32,2742.5,2742.4,0.1001761]
[1740235417764,5.32,2742.8,2742.4,0.1001761]
[1740235417964,6.658366,2742.8,2742.4,0.1001761]
[1740235418257,6.658366,2742.8,2742.2,3.64661]
[1740235418489,6.658366,2742.8,2742.5,0.10012401]
[1740235418690,6.658366,2742.8,2742.2,3.64661]
[1740235418890,10.304306,2742.8,2742.6,0.10007192]
[1740235419204,4.7536906,2742.7,2742.0,4.54292]
[1740235419999,3.64639,2742.5,2741.8,3.64713]
[1740235420660,3.64639,2742.5,2741.6,0.631]
[1740235420868,3.64646,2742.4,2741.7,3.64726]
[1740235421785,3.64646,2742.4,2741.6,4.54344]
[1740235422096,4.989645,2742.4,2741.8,3.64721]
[1740235422894,3.6467,2742.3,2741.6,4.54344]
[1740235423194,3.64672,2742.2,2741.6,4.54344]
[1740235423408,3.64672,2742.2,2741.6,8.19085]
[1740235423717,5.32,2742.1,2741.6,8.19085]
[1740235424078,5.32,2742.1,2741.6,4.54341]
[1740235424281,5.32,2742.1,2741.6,3.64741]
[1740235425125,5.32,2742.1,2741.6,7.29483]
[1740235425322,5.32,2742.1,2741.6,3.64739]
[1740235426178,5.32,2742.1,2741.7,0.10038329]
[1740235426406,5.32,2742.1,2742.0,3.64697]
[1740235426795,5.32,2742.1,2742.0,3.74719695]
[1740235429504,5.32,2742.1,2742.0,0.10022695]
[1740235429709,5.32,2742.2,2742.0,0.10022695]
[1740235429922,6.4328655,2742.2,2741.8,4.37508104]
[1740235430119,6.4328655,2742.2,2742.1,0.10044359]
[1740235430413,6.4328655,2742.2,2741.8,4.37508104]
[1740235430585,6.4328655,2742.2,2742.1,0.10044359]
[1740235430786,6.4328655,2742.2,2741.8,4.37508104]
[1740235431016,6.4328655,2742.2,2742.1,0.10044359]
[1740235431216,6.4328655,2742.2,2741.8,4.37508104]
[1740235431434,6.4328655,2742.2,2742.1,0.10044359]
[1740235431631,6.4328655,2742.2,2741.8,4.37508104]
[1740235431853,6.4328655,2742.2,2742.1,0.10044359]
[1740235432018,6.4328655,2742.2,2741.8,4.37508104]
[1740235432219,6.4328655,2742.2,2742.1,0.10044359]
[1740235432421,6.4328655,2742.2,2741.8,0.72788104]
[1740235432751,6.4328655,2742.2,2742.1,0.10044359]
[1740235432944,6.4328655,2742.2,2741.8,0.72788104]
[1740235433130,6.4328655,2742.2,2742.1,0.10044359]
[1740235433631,6.4328655,2742.2,2741.8,0.72788104]
[1740235433829,6.4328655,2742.2,2742.1,0.10044359]
[1740235434135,6.4328655,2742.2,2741.8,4.37502104]
[1740235434328,5.32,2742.2,2741.8,4.37502104]
[1740235434532,5.32,2742.2,2741.9,0.10054781]
[1740235437858,3.64697,2742.0,2741.9,0.10054781]
[1740235439159,0.7565,2742.1,2741.9,0.10054781]
[1740235439568,0.7565,2742.1,2741.8,4.37499104]
[1740235439866,0.7565,2742.1,2741.9,0.10075171]
[1740235441773,5.32,2742.0,2741.9,0.10075171]
[1740235444537,8.96697,2742.0,2741.9,0.10075171]
[1740235444965,5.32,2742.0,2741.9,0.10075171]
[1740235446217,6.657005,2742.0,2741.9,0.10075171]
[1740235447404,10.303975,2742.0,2741.9,0.10075171]
[1740235447915,6.657005,2742.0,2741.9,0.10075171]
[1740235448981,6.657005,2742.0,2741.9,0.00075171]
[1740235449183,6.657005,2742.0,2741.9,0.10090931]
[1740235451222,5.32,2742.0,2741.9,0.10090931]
[1740235451938,5.32,2742.0,2741.9,3.74800931]
[1740235452104,5.32,2742.0,2741.9,7.80275915]
[1740235452503,5.32,2742.7,2742.1,0.631]
[1740235452703,6.1066,2743.0,2742.6,4.27708]
[1740235452937,1.35576,2742.9,2742.7,3.64603]
[1740235453088,7.451,2743.1,2743.0,3.64564]
[1740235453293,0.7866,2743.4,2742.9,3.64568]
[1740235453526,0.7866,2743.4,2743.0,3.74243267]
[1740235454993,0.7866,2743.4,2743.0,0.09679267]
[1740235455208,0.7866,2743.4,2742.6,4.27715]
[1740235455209,3.64525,2743.3,2742.6,4.27715]
[1740235455391,4.088435,2743.3,2742.6,4.27715]
[1740235455594,3.6454,2743.2,2742.6,4.27715]
[1740235455830,3.6454,2743.2,2742.7,0.09657818]
[1740235456125,0.443185,2743.3,2742.7,0.09657818]
[1740235456326,3.6459,2742.8,2742.7,0.09657818]
[1740235456492,5.32,2742.8,2742.3,4.27755]
[1740235456687,5.32,2742.8,2742.7,0.09657818]
[1740235456926,5.32,2742.8,2742.7,0.82669504]
[1740235457228,5.32,2742.8,2742.7,0.73011686]
[1740235457429,8.9659,2742.8,2742.7,0.82669504]
[1740235457596,10.227074,2742.8,2742.7,0.09657818]
[1740235458018,10.227074,2742.8,2742.3,0.631]
[1740235458327,10.227074,2742.8,2742.7,0.09657818]
[1740235458503,3.64612,2742.7,2742.1,0.264]
[1740235458710,5.32,2742.6,2742.1,0.264]
[1740235459217,6.7073194,2742.6,2742.1,0.264]
[1740235459408,3.64638,2742.5,2742.1,0.264]
[1740235459749,8.96652,2742.4,2742.0,0.631]
[1740235459909,3.64659,2742.3,2742.0,0.631]
[1740235460398,5.32,2742.2,2741.7,0.631]
[1740235460596,8.96672,2742.2,2741.7,0.895]
[1740235460969,5.32,2742.2,2741.7,0.895]
[1740235461134,5.32,2742.2,2741.7,4.54236]
[1740235463298,5.32,2742.2,2741.7,0.895]
[1740235463500,5.32,2742.2,2742.0,3.64695]
[1740235463854,5.32,2742.6,2742.5,3.6463]
[1740235464001,5.32,2742.6,2742.1,4.27774]
[1740235464776,5.32,2742.6,2742.2,3.6467]
[1740235466327,5.32,2742.6,2742.1,4.27774]
[1740235466544,6.216598,2742.6,2742.1,4.27774]
[1740235466940,6.216598,2742.6,2742.1,7.92448]
[1740235468235,5.32,2742.5,2742.1,7.92448]
[1740235468767,5.32,2742.5,2742.1,3.64674]
[1740235469268,5.32,2742.5,2742.2,3.64662]
[1740235469432,5.32,2742.5,2742.4,3.64644]
[1740235470666,5.32,2742.5,2742.4,0.631]
[1740235470872,5.32,2742.5,2742.0,0.895]
[1740235471071,5.32,2742.5,2742.3,3.64646]
[1740235471370,5.32,2742.5,2742.4,0.09694758]
[1740235471740,5.32,2742.5,2742.2,3.64657]
[1740235471945,5.32,2742.5,2742.4,0.09694758]
[1740235472172,5.32,2742.5,2742.3,0.09699968]
[1740235472470,5.32,2742.5,2742.4,0.09694758]
[1740235472865,5.32,2742.5,2742.4,3.74338758]
[1740235473637,5.32,2742.5,2742.4,4.37438758]
[1740235474337,5.32,2742.9,2742.4,4.37438758]
[1740235474539,5.32,2742.9,2742.6,3.64616]
[1740235474739,5.32,2742.9,2742.7,3.64603]
[1740235474938,5.32,2742.9,2742.8,3.6459]
[1740235475430,5.32,2742.9,2742.8,3.74227781]
[1740235476135,5.32,2742.9,2742.8,0.09637781]
[1740235476562,5.32,2742.9,2742.7,3.64603]
[1740235476776,5.32,2742.9,2742.8,0.09572916]
[1740235476972,5.32,2742.9,2742.8,3.74162916]
[1740235477170,5.32,2743.1,2743.0,3.64564]
[1740235477578,5.32,2743.1,2743.0,0.09562501]
[1740235477967,5.32,2743.1,2742.9,7.29134]
[1740235478154,5.32,2743.1,2743.0,3.74126501]
[1740235478641,5.32,2743.3,2743.0,3.74126501]
[1740235478841,5.32,2743.3,2743.2,3.64537]
[1740235479238,5.32,2743.3,2743.2,0.09538192]
[1740235479846,5.32,2743.3,2742.9,3.64572]
[1740235480046,5.32,2743.3,2743.2,0.09538192]
[1740235480265,5.852,2743.3,2743.2,0.09538192]
[1740235480481,6.6794,2743.3,2743.2,0.09538192]
[1740235480776,10.32464,2743.3,2743.2,0.09538192]
[1740235480988,10.32464,2743.3,2742.8,0.264]
[1740235481190,10.32472,2743.3,2743.2,0.09538192]
[1740235481346,10.32472,2743.3,2742.8,3.90988]
[1740235481546,10.32472,2743.3,2743.2,0.09538192]
[1740235481758,10.32472,2743.3,2742.8,0.264]
[1740235481983,10.32472,2743.3,2743.2,0.09538192]
[1740235482278,10.32472,2743.3,2742.8,0.264]
[1740235482784,10.32472,2743.3,2742.9,0.09553813]
[1740235483143,5.32,2743.2,2742.9,0.09553813]
[1740235484074,8.96538,2743.2,2742.9,0.09553813]
[1740235484250,10.362371,2743.2,2742.9,0.09553813]
[1740235484946,3.64564,2743.0,2742.9,0.09553813]
[1740235485148,3.64551,2743.1,2742.5,0.264]
[1740235485379,3.64551,2743.1,2742.6,0.0952404]
[1740235485585,0.7767,2743.0,2742.6,0.0952404]
[1740235486970,5.32,2743.2,2742.6,0.0952404]
[1740235487180,5.32,2743.2,2742.8,3.6458]
[1740235487594,5.32,2743.2,2742.9,0.09508416]
[1740235488901,3.64552,2743.1,2742.5,0.264]
[1740235489101,5.32,2743.0,2742.6,3.7413804]
[1740235489868,5.32,2743.0,2742.6,0.0952404]
[1740235490069,5.32,2743.0,2742.8,3.64581]
[1740235490307,5.32,2743.0,2742.9,0.09508416]
[1740235491504,5.32,2743.0,2742.7,3.64603]
[1740235491805,5.32,2743.0,2742.8,3.74102624]
[1740235493397,5.32,2743.0,2742.8,0.09513624]
[1740235493707,5.32,2743.0,2742.6,3.64606]
[1740235493919,5.32,2743.0,2742.7,0.09518832]
[1740235494371,5.32,2743.0,2742.7,3.74121832]
[1740235495020,5.32,2743.1,2742.7,3.74121832]
[1740235497611,5.32,2743.1,2742.7,0.09518832]
[1740235497779,5.32,2743.1,2742.8,0.72876651]
[1740235498180,5.32,2743.1,2742.9,0.09176439]
[1740235498380,6.658755,2743.1,2742.9,0.09176439]
[1740235500012,3.64564,2743.0,2742.9,0.09176439]
[1740235500582,4.45294,2743.0,2742.9,0.09176439]
[1740235501083,0.8073,2742.6,2741.9,3.6471]
[1740235501277,5.32,2742.5,2742.0,0.98393514]
[1740235501495,5.32,2742.5,2742.1,3.64683]
[1740235501715,5.32,2742.5,2742.2,0.0890162]
[1740235502519,5.32,2742.5,2742.3,3.64653]
[1740235502847,5.32,2742.5,2742.4,0.088912]
[1740235503561,5.32,2742.5,2742.4,3.735352]
[1740235503945,5.32,2742.5,2742.4,4.366352]
[1740235506027,5.32,2742.5,2742.4,0.088912]
[1740235506227,5.93294,2742.5,2742.4,0.088912]
[1740235506768,5.93294,2742.5,2741.9,7.92504]
[1740235506970,5.93294,2742.5,2742.0,0.08937057]
[1740235507623,5.93294,2742.5,2742.0,3.73632057]
[1740235508071,5.93294,2742.5,2742.0,0.08937057]
[1740235508240,5.32,2742.5,2742.1,3.6468]
[1740235508578,5.32,2742.5,2742.2,0.08985933]
[1740235510391,5.32,2742.5,2742.0,3.64686]
[1740235510589,5.32,2742.5,2742.3,0.08980723]
[1740235510743,5.32,2742.5,2741.9,7.925]
[1740235511085,5.32,2742.5,2742.0,0.08996354]
[1740235511277,5.32,2742.5,2742.1,3.64682]
[1740235511464,9.943897,2742.5,2742.0,0.08996354]
[1740235511665,9.943897,2742.5,2742.2,0.08985933]
[1740235511865,9.943897,2742.5,2742.1,0.08987437]
[1740235512069,9.943897,2742.5,2742.3,0.08977016]
[1740235512265,1.4399467,2742.4,2742.2,0.08982226]
[1740235512577,5.32,2742.5,2742.0,3.64694]
[1740235513486,3.64703,2742.0,2741.5,0.631]
[1740235513655,5.32,2741.9,2741.5,0.631]
[1740235514490,5.32,2741.9,2741.5,4.27855]
[1740235514901,5.32,2741.9,2741.5,7.9261]
[1740235515106,5.32,2741.9,2741.7,3.64735]
[1740235515283,5.32,2741.9,2741.8,3.64723]
[1740235515999,5.32,2741.9,2741.8,4.27823]
[1740235516148,5.32,2741.9,2741.8,5.15411793]
[1740235516679,5.32,2741.9,2741.8,1.50688793]
[1740235516883,5.32,2741.9,2741.8,4.36155993]
[1740235517062,5.32,2741.9,2741.8,3.73055993]
[1740235517259,5.32,2741.9,2741.8,0.08332993]
[1740235517458,4.4009,2741.9,2741.8,0.08332993]
[1740235517762,4.4009,2741.9,2741.3,4.2788]
[1740235517961,4.4009,2741.9,2741.8,0.08041567]
[1740235518163,2.090595,2741.9,2741.4,3.64771]
[1740235518345,0.7538,2741.9,2741.5,0.08057203]
[1740235519176,4.40093,2741.9,2741.3,4.2788]
[1740235519376,0.7538,2741.9,2741.4,0.08062416]
[1740235519953,0.7538,2741.9,2741.4,3.72829416]
[1740235520287,0.7538,2741.9,2741.8,0.72069175]
[1740235520486,1.725885,2741.9,2741.8,0.72069175]
[1740235521750,7.045885,2741.9,2741.8,0.72069175]
[1740235522686,7.045885,2741.9,2741.8,0.80234943]
[1740235522992,7.045885,2741.9,2741.8,0.72069175]
[1740235524386,10.692985,2741.9,2741.8,0.72069175]
[1740235524566,0.7562,2741.7,2741.1,4.27913]
[1740235524766,0.7562,2741.7,2741.2,0.08197045]
[1740235526285,5.4731345,2741.7,2741.2,0.08197045]
[1740235527658,5.32,2741.6,2741.2,0.08197045]
[1740235528782,5.32,2741.6,2741.2,3.72988045]
[1740235528990,5.32,2741.6,2741.3,3.64782]
[1740235529461,5.32,2741.6,2741.4,0.08199598]
[1740235529856,5.32,2741.6,2741.4,3.72972598]
[1740235530795,5.606473,2741.6,2741.4,3.72972598]
[1740235531296,5.606473,2741.6,2741.4,0.08199598]
[1740235531661,5.606473,2741.6,2741.2,7.2959]
[1740235531861,5.606473,2741.6,2741.5,0.08194385]
[1740235532073,5.606473,2741.6,2741.2,3.64795]
[1740235532276,5.606473,2741.6,2741.5,0.08194385]
[1740235532482,5.606473,2741.6,2741.2,3.64795]
[1740235532682,5.606473,2741.6,2741.5,0.13927963]
[1740235532896,5.606473,2741.6,2741.2,3.64795]
[1740235533090,5.606473,2741.6,2741.5,0.13937233]
[1740235533307,5.606473,2741.6,2741.2,3.64795]
[1740235533509,5.606473,2741.6,2741.5,0.13937233]
[1740235533682,5.606473,2741.6,2741.2,3.64795]
[1740235533884,5.606473,2741.6,2741.5,0.13937233]
[1740235534060,5.606473,2741.6,2741.2,3.64795]
[1740235534264,5.606473,2741.6,2741.5,0.13937233]
[1740235534781,5.606473,2741.6,2741.2,7.29588]
[1740235535104,5.606473,2741.6,2741.3,3.78736078]
[1740235535600,5.606473,2741.6,2741.3,0.13948078]
[1740235535798,5.606473,2741.6,2741.3,3.78736078]
[1740235536176,5.606473,2741.6,2741.3,0.13948078]
[1740235536380,0.6362673,2741.5,2741.0,3.64819]
[1740235536680,5.606473,2741.6,2741.1,0.13958924]
[1740235537877,9.253983,2741.6,2741.1,0.13958924]
[1740235539599,5.32,2741.5,2741.1,0.13958924]
[1740235539913,0.7916,2741.4,2741.1,0.13958924]
[1740235540114,5.32,2741.3,2741.1,0.13958924]
[1740235542284,5.32,2741.3,2740.9,3.6484]
[1740235542485,5.32,2741.3,2741.0,0.13964348]
[1740235546718,6.295924,2741.3,2741.0,0.13964348]
[1740235546919,0.8328,2741.1,2740.5,0.631]
[1740235547119,5.32,2741.0,2740.5,0.895]
[1740235547311,5.32,2741.0,2740.9,3.64843]
[1740235547510,5.32,2741.0,2740.9,4.644273]
[1740235547807,5.32,2741.0,2740.9,4.784286]
[1740235548496,0.61256,2741.5,2741.4,4.27877]
[1740235548703,0.286473,2741.6,2741.5,3.64763]
[1740235548904,0.286473,2741.6,2741.5,3.78740107]
[1740235549104,0.286473,2741.6,2741.5,4.62041818]
[1740235551731,3e-06,2741.6,2741.5,8.67516802]
[1740235551929,3e-06,2741.6,2741.5,12.22516802]
[1740235558618,3.0,2743.4,2743.2,3.64537]
[1740235558619,0.7836,2743.3,2743.2,3.64537]
[1740235558816,1.39616,2743.3,2743.1,3.64547]
[1740235559056,1.39616,2743.3,2743.2,3.78198602]
[1740235560566,1.39616,2743.3,2743.2,0.13661602]
[1740235560718,1.39616,2743.3,2743.0,3.64555]
[1740235560917,1.39616,2743.3,2743.1,0.13657752]
[1740235562067,1.39616,2743.3,2743.1,3.78207752]
[1740235562565,1.39616,2743.3,2743.1,0.13657752]
[1740235563173,0.7873,2743.2,2743.1,0.13657752]
[1740235563317,1.39986,2743.2,2743.1,0.13657752]
[1740235563839,1.39986,2743.2,2742.8,3.90982]
[1740235564038,1.39986,2743.2,2743.1,0.13657752]
[1740235564350,1.926158,2743.2,2743.1,0.13657752]
[1740235564673,1.926158,2743.2,2742.8,3.90982]
[1740235564882,1.42166,2743.2,2743.1,0.13657752]
[1740235565315,4.25793,2743.2,2742.4,3.9104]
[1740235565519,0.8091,2742.9,2742.5,0.1366802]
[1740235566070,0.8091,2742.9,2742.5,3.7829802]
[1740235566570,0.8091,2742.9,2742.5,0.1366802]
[1740235566866,0.8091,2742.8,2742.5,0.1366802]
[1740235567467,0.8091,2742.7,2742.2,3.91061]
[1740235567677,4.45516,2742.7,2742.6,0.13195507]
[1740235567973,0.8091,2742.4,2742.2,0.264]
[1740235568167,1.42166,2742.4,2741.8,3.64716]
[1740235568333,5.06812,2742.4,2741.8,3.64716]
[1740235568520,0.8091,2742.2,2741.6,3.91815296]
[1740235568719,1.42166,2742.2,2741.8,3.64715]
[1740235568970,1.42166,2742.2,2741.4,5.00797259]
[1740235569171,0.7544,2741.9,2741.4,4.64097259]
[1740235569324,0.7544,2741.9,2741.4,0.264]
[1740235569678,4.4015,2741.9,2741.4,0.264]
[1740235569962,3.64725,2741.8,2741.3,3.0]
[1740235570318,0.61256,2741.7,2741.0,3.64828]
[1740235570548,0.7544,2741.6,2741.0,3.91228]
[1740235570873,0.7544,2741.6,2741.1,3.0]
[1740235571663,0.7544,2741.6,2741.1,6.64815]
[1740235571871,0.7544,2741.6,2741.2,3.6479]
[1740235572521,0.7544,2741.6,2741.1,6.64815]
[1740235572722,0.7544,2741.6,2741.1,7.7406883]
[1740235572963,0.7544,2741.6,2741.2,3.648]
[1740235573223,0.7544,2741.6,2741.4,3.64773]
[1740235573624,0.61256,2741.7,2741.6,3.6475]
[1740235574075,0.7732,2742.3,2742.2,3.6467]
[1740235574238,0.61256,2742.3,2742.2,3.6467]
[1740235575126,0.61256,2742.3,2742.0,3.64684]
[1740235575723,0.7732,2742.1,2741.6,3.64737]
[1740235575929,0.61256,2742.0,2741.6,3.64737]
[1740235576129,0.61256,2742.0,2741.7,0.13340647]
[1740235577138,0.61256,2742.0,2741.4,3.91172]
[1740235577139,4.25953,2742.0,2741.4,3.91172]
[1740235577336,4.762778,2742.0,2741.5,0.13357051]
[1740235577536,3.64733,2741.8,2741.5,0.13357051]
[1740235577734,0.61256,2741.9,2741.5,0.13357051]
[1740235577735,0.7732,2741.7,2741.5,0.13357051]
[1740235577940,0.7732,2741.7,2741.3,3.64781]
[1740235578149,0.7732,2741.7,2741.4,0.13362473]
[1740235578842,0.7732,2741.7,2741.5,3.64759]
[1740235579043,0.61256,2741.9,2741.6,3.6475]
[1740235579254,0.61256,2741.9,2741.8,3.64723]
[1740235579741,0.61256,2741.9,2741.8,0.13371375]
[1740235579944,0.61256,2741.9,2741.6,3.6475]
[1740235580146,0.61256,2741.9,2741.7,0.13376796]
[1740235581315,0.61256,2741.9,2741.7,3.78105796]
[1740235581571,0.61256,2741.9,2741.8,3.64723]
[1740235581770,0.61256,2741.9,2741.8,3.78094375]
[1740235584044,0.61256,2742.2,2742.1,3.64684]
[1740235584467,0.61256,2742.2,2742.1,0.13376436]
[1740235584979,1.115794,2742.2,2742.1,0.13376436]
[1740235585145,0.61256,2742.2,2741.6,3.264]
[1740235585458,0.61256,2742.2,2741.7,3.78127117]
[1740235586349,0.61256,2742.2,2741.9,3.647]
[1740235586549,0.61256,2742.2,2742.0,0.13381855]
[1740235588876,0.61256,2742.2,2741.5,0.264]
[1740235589086,0.61256,2742.2,2742.1,0.13376436]
[1740235589560,0.61256,2742.2,2741.8,3.64723]
[1740235589760,0.61256,2742.2,2741.9,0.13387275]
[1740235590993,0.61256,2742.2,2742.0,0.73609187]
[1740235591200,0.61256,2742.2,2742.1,0.13376436]
[1740235593469,4.25926,2742.2,2742.1,0.13376436]
[1740235593893,5.127164,2742.2,2742.1,0.13376436]
[1740235594769,5.127164,2742.2,2741.1,3.631]
[1740235594770,3.64711,2741.9,2741.1,3.631]
[1740235594967,0.7554,2741.7,2741.2,3.78196128]
[1740235595208,0.7554,2741.7,2741.6,0.7146875]
[1740235595365,0.7554,2741.7,2741.6,0.84825942]
[1740235596299,1.36796,2741.7,2741.6,0.84825942]
[1740235597214,0.61256,2741.7,2741.6,4.49575942]
[1740235597383,0.61256,2741.7,2741.6,5.31009836]
[1740235597919,0.61256,2741.7,2741.6,5.94109836]
[1740235601997,0.61256,2742.2,2741.9,3.64702]
[1740235602199,0.61256,2742.2,2742.0,0.13371661]
[1740235602832,0.61256,2742.2,2742.0,3.78062661]
[1740235603033,0.61256,2742.2,2742.0,3.78067661]
[1740235603927,0.61256,2742.2,2742.1,3.64684]
[1740235604316,0.61256,2742.2,2742.1,3.78050242]
[1740235604515,0.61256,2742.2,2742.1,4.5211241]
[1740235607506,0.61256,2742.2,2742.1,5.33793351]
[1740235616067,1.38066,2742.9,2742.7,3.64591]
[1740235616251,1.38066,2742.9,2742.5,3.64625]
[1740235616566,1.38066,2742.9,2742.6,0.13213109]
[1740235620369,5.02644,2742.9,2742.6,0.13213109]
[1740235620568,0.8221,2742.7,2742.3,3.64657]
[1740235620937,0.8221,2742.7,2742.4,0.13223945]
[1740235621475,0.8221,2742.7,2742.6,3.64617]
[1740235621670,1.43466,2742.9,2742.6,3.64617]
[1740235621973,1.43466,2742.9,2742.6,3.77830109]
[1740235622766,4.46809,2742.8,2742.6,0.13213109]
[1740235622977,3.64604,2742.7,2742.6,0.13213109]
[1740235623132,3.64604,2742.7,2742.2,0.264]
[1740235623333,3.64604,2742.7,2742.6,0.13213109]
[1740235623564,3.64604,2742.7,2742.2,0.264]
[1740235623769,4.40754,2742.7,2742.6,0.13213109]
[1740235623970,1.6789155,2742.7,2742.1,7.29345]
[1740235624174,0.7615,2742.7,2742.6,0.13213109]
[1740235624367,0.7615,2742.7,2742.2,3.64667]
[1740235624669,0.7615,2742.7,2742.2,3.64661]
[1740235624838,0.7615,2742.7,2742.3,0.13229363]
[1740235625173,0.7615,2742.7,2742.2,3.64661]
[1740235625477,0.7615,2742.7,2742.3,0.13229363]
[1740235625835,0.7615,2742.7,2742.2,3.64661]
[1740235626034,0.7615,2742.7,2742.3,0.13229363]
[1740235626397,0.7615,2742.7,2742.2,3.64661]
[1740235626561,0.7615,2742.7,2742.4,0.13223945]
[1740235626764,0.7615,2742.7,2742.3,0.13229363]
[1740235627065,0.7615,2742.7,2742.4,0.13223945]
[1740235627263,0.7615,2742.7,2742.2,3.64661]
[1740235627459,0.7615,2742.7,2742.3,0.13229363]
[1740235627659,0.0168,2743.1,2742.3,0.37789036]
[1740235627660,0.7615,2742.9,2742.3,0.37789036]
[1740235627881,0.7615,2742.9,2742.4,3.77859945]
[1740235628572,0.7615,2742.9,2742.5,3.64627]
[1740235628780,5.32,2742.6,2742.5,3.64627]
[1740235631159,5.32,2742.6,2742.5,4.27727]
[1740235632766,5.32,2742.6,2742.3,0.631]
[1740235632970,5.32,2742.6,2742.4,3.6464]
[1740235633978,5.32,2742.6,2742.2,3.64659]
[1740235634791,5.32,2742.6,2742.0,3.91092]
[1740235634792,0.7615,2742.5,2742.0,3.91089]
[1740235635061,9.72782,2742.5,2741.9,3.6471]
[1740235635246,9.72782,2742.5,2742.0,3.64696]
[1740235635247,0.7615,2742.4,2742.0,3.64696]
[1740235635673,0.7615,2742.4,2742.2,3.64657]
[1740235636265,0.7615,2742.4,2742.3,0.12346085]
[1740235636449,0.7615,2742.4,2742.2,3.64657]
[1740235636767,0.7615,2742.4,2742.3,0.12346085]
[1740235636963,0.7615,2742.4,2742.3,3.77003085]
[1740235637174,5.32,2742.5,2742.4,3.64644]
[1740235637679,5.32,2742.5,2742.4,3.7700221]
[1740235640289,6.0815,2743.0,2742.9,3.64577]
[1740235640774,6.0815,2743.0,2742.9,3.76896119]
[1740235645989,6.0815,2743.0,2742.9,0.12319119]
[1740235646492,6.0815,2743.0,2742.9,3.76896119]
[1740235648691,5.32,2743.0,2742.9,3.76896119]
[1740235650753,6.73687,2743.0,2742.9,0.12319119]
[1740235650952,10.38251,2743.0,2742.9,0.12319119]
[1740235651189,0.8029,2742.5,2742.0,0.264]
[1740235651402,6.1229,2742.5,2742.0,0.264]
[1740235651596,3.64651,2742.4,2742.1,0.12294151]
[1740235652776,0.8029,2742.3,2742.1,0.12294151]
[1740235653016,3.6467,2742.2,2742.1,0.12294151]
[1740235653220,0.8029,2742.3,2742.1,0.12294151]
[1740235653620,0.8029,2742.3,2742.2,0.12288731]
[1740235653824,1.779834,2742.3,2742.2,0.12288731]
[1740235654025,5.426524,2742.3,2742.2,0.12288731]
[1740235654381,5.426524,2742.3,2741.7,3.91132]
[1740235654579,0.8029,2742.3,2742.2,0.12288731]
[1740235655081,0.8029,2742.3,2742.1,3.64683]
[1740235655317,0.8029,2742.3,2742.2,0.12288731]
[1740235655521,6.1229,2742.3,2742.2,0.12288731]
[1740235655716,6.1229,2742.3,2741.9,3.64709]
[1740235655880,6.1229,2742.3,2742.2,0.12288731]
[1740235656080,5.32,2742.3,2741.8,0.631]
[1740235656309,5.32,2742.3,2742.2,3.6467]
[1740235656704,5.32,2742.3,2742.2,3.76958731]
[1740235656909,5.32,2742.3,2742.2,4.87591404]
[1740235657497,5.32,2742.3,2742.2,8.50691404]
[1740235660331,6.1229,2743.0,2742.9,3.64577]
[1740235660688,6.1229,2743.0,2742.9,3.76897975]
[1740235660912,6.1229,2743.0,2742.9,3.64577]
[1740235661119,5.32,2743.0,2742.9,3.76897975]
[1740235661383,5.32,2743.0,2742.9,4.51046873]
[1740235661587,0.0168,2743.1,2743.0,3.64564]
[1740235661588,5.3368,2743.1,2743.0,3.64564]
[1740235661997,5.3368,2743.1,2743.0,3.76879558]
[1740235664616,5.3368,2743.1,2743.0,0.12315558]
[1740235664922,6.103,2743.1,2743.0,0.12315558]
[1740235665423,6.103,2743.1,2742.7,3.91002]
[1740235665728,6.103,2743.1,2742.6,6.64614]
[1740235665928,6.103,2743.1,2742.8,0.12326391]
[1740235666131,6.103,2743.1,2742.7,0.12331808]
[1740235666437,6.103,2743.1,2742.9,0.12320975]
[1740235666596,3.64569,2743.0,2742.8,0.12326391]
[1740235666795,0.7662,2742.9,2742.4,3.91041]
[1740235667032,0.7662,2742.9,2742.4,7.55676]
[1740235667203,0.7662,2742.9,2742.4,3.91035]
[1740235667501,5.32,2742.8,2742.4,3.91035]
[1740235667712,5.32,2742.8,2742.4,3.64635]
[1740235668111,5.32,2742.8,2742.4,7.2927]
[1740235668320,5.32,2742.8,2742.4,3.64635]
[1740235669144,5.32,2742.8,2742.4,7.29268]
[1740235669641,5.32,2742.8,2742.4,3.64633]
[1740235672145,5.32,2742.8,2742.5,3.64626]
[1740235673115,5.32,2742.8,2742.2,6.91064]
[1740235673328,8.96592,2742.8,2742.2,11.41328237]